fUST/lending_fUST_20250219
["ID","MTS","AMOUNT","RATE_DAILY","PERIOD"]
[353524183,1739897448119,-500.0,0.00014109,2]
[353524185,1739897448131,-500.0,0.00014109,2]
[353524187,1739897448143,-553.42,0.00014109,2]
[353524189,1739897448154,-500.0,0.00014109,2]
[353524191,1739897448165,-500.0,0.00014109,2]
[353524193,1739897448175,-841.33,0.00014109,2]
[353524195,1739897448185,-500.0,0.00014109,2]
[353524197,1739897448195,-500.0,0.00014109,2]
[353524199,1739897448205,-500.0,0.00014109,2]
[353524201,1739897448214,-500.0,0.00014109,2]
[353524203,1739897448224,-500.0,0.00014109,2]
[353524205,1739897448233,-500.0,0.00014109,2]
[353524207,1739897448242,-500.0,0.00014109,2]
[353524209,1739897448252,-500.0,0.00014109,2]
[353524211,1739897448262,-500.0,0.00014109,2]
[353524213,1739897448271,-500.0,0.00014109,2]
[353524215,1739897448281,-500.0,0.00014109,2]
[353524216,1739897448291,-500.0,0.00014109,2]
[353524218,1739897448300,-500.0,0.00014109,2]
[353524221,1739897448311,-500.0,0.00014109,2]
[353524223,1739897448320,-500.0,0.00014109,2]
[353524224,1739897448332,-607.83,0.00014109,2]
[353524226,1739897448342,-500.0,0.00014109,2]
[353524228,1739897448352,-500.0,0.00014109,2]
[353524230,1739897448361,-1433.55,0.00014109,2]
[353524240,1739897448442,-749.6,0.00014109,2]
[353524242,1739897448452,-587.78,0.00014109,2]
[353524244,1739897448462,-500.0,0.00014109,2]
[353524246,1739897448471,-166.38,0.00014109,2]
[353524248,1739897448481,-500.0,0.00014109,2]
[353524250,1739897448491,-4630.33,0.00014109,2]
[353524252,1739897448500,-500.0,0.00014109,2]
[353524254,1739897448511,-1836.19,0.00014109,2]
[353524256,1739897448521,-328.69894025,0.00014109,2]
[353524258,1739897448531,-457.26856178,0.00014109,2]
[353524260,1739897448541,-855.17,0.00014109,2]
[353524262,1739897448551,-500.0,0.00014109,2]
[353524264,1739897448561,-609.24,0.00014109,2]
[353524266,1739897448571,-500.0,0.00014109,2]
[353524268,1739897448581,-583.31,0.00014109,2]
[353524270,1739897448590,-500.0,0.00014109,2]
[353524272,1739897448600,-629.68159982,0.00014109,2]
[353524274,1739897448609,-366.02057995,0.00014109,2]
[353524276,1739897448619,-500.0,0.00014109,2]
[353524278,1739897448629,-1389.19,0.00014109,2]
[353524280,1739897448639,-3186.79,0.00014109,2]
[353524282,1739897448648,-692.41,0.00014109,2]
[353524284,1739897448658,-500.0,0.00014109,2]
[353524286,1739897448667,-564.78,0.00014109,2]
[353524288,1739897448676,-500.0,0.00014109,2]
[353524290,1739897448685,-1303.57,0.00014109,2]
[353524291,1739897448695,-991.86,0.00014109,2]
[353524293,1739897448705,-1423.23,0.00014109,2]
[353524295,1739897448714,-6758.46,0.00014109,2]
[353524298,1739897448725,-14917.53,0.00014109,2]
[353524300,1739897448735,-1025.9,0.00014109,2]
[353524302,1739897448745,-500.0,0.00014109,2]
[353524304,1739897448755,-500.0,0.00014109,2]
[353524306,1739897448765,-500.0,0.00014109,2]
[353524308,1739897448776,-500.0,0.00014109,2]
[353524310,1739897448786,-500.0,0.00014109,2]
[353524312,1739897448797,-893.42,0.00014109,2]
[353524313,1739897448807,-1265.43,0.00014109,2]
[353524316,1739897448817,-2630.2,0.00014109,2]
[353524318,1739897448830,-500.0,0.00014109,2]
[353524320,1739897448840,-726.99,0.00014109,2]
[353524321,1739897448850,-500.0,0.00014109,2]
[353524323,1739897448860,-721.74,0.00014109,2]
[353524325,1739897448870,-638.2,0.00014109,2]
[353524328,1739897448881,-228.312,0.00014186,2]
[353524330,1739897448891,-1174.94,0.00014191,2]
[353524332,1739897448902,-500.0,0.00014191,2]
[353524334,1739897448915,-309.24,0.00014191,2]
[353524336,1739897448926,-500.0,0.00014191,2]
[353524338,1739897448937,-500.0,0.00014191,2]
[353524340,1739897448947,-500.0,0.00014191,2]
[353524342,1739897448958,-500.0,0.00014191,2]
[353524344,1739897448969,-500.0,0.00014191,2]
[353524346,1739897448980,-500.0,0.00014191,2]
[353524348,1739897448990,-500.0,0.00014191,2]
[353524350,1739897449001,-553.42,0.00014191,2]
[353524352,1739897449011,-500.0,0.00014191,2]
[353524354,1739897449021,-500.0,0.00014191,2]
[353524356,1739897449031,-841.33,0.00014191,2]
[353524358,1739897449041,-500.0,0.00014191,2]
[353524360,1739897449051,-500.0,0.00014191,2]
[353524362,1739897449062,-500.0,0.00014191,2]
[353524364,1739897449072,-500.0,0.00014191,2]
[353524366,1739897449082,-500.0,0.00014191,2]
[353524368,1739897449092,-453.13,0.00014191,2]
[353524370,1739897449103,-500.0,0.00014191,2]
[353524372,1739897449112,-640.14,0.00014191,2]
[353524374,1739897449123,-339.71,0.00014191,2]
[353524376,1739897449134,-500.0,0.00014191,2]
[353524378,1739897449143,-500.0,0.00014191,2]
[353524380,1739897449155,-500.0,0.00014191,2]
[353524382,1739897449165,-500.0,0.00014191,2]
[353524384,1739897449175,-467.00146288,0.00014191,2]
[353524386,1739897449185,-211.5844172,0.00014191,2]
[353524388,1739897449195,-500.0,0.00014191,2]
[353524390,1739897449204,-1433.55,0.00014191,2]
[353524392,1739897449215,-749.6,0.00014191,2]
[353524394,1739897449225,-500.0,0.00014191,2]
[353524396,1739897449235,-500.0,0.00014191,2]
[353524398,1739897449246,-4630.33,0.00014191,2]
[353524400,1739897449257,-500.0,0.00014191,2]
[353524402,1739897449267,-1836.19,0.00014191,2]
[353524405,1739897449279,-855.17,0.00014191,2]
[353524407,1739897449290,-500.0,0.00014191,2]
[353524409,1739897449300,-199.73,0.00014191,2]
[353524411,1739897449311,-583.31,0.00014191,2]
[353524412,1739897449320,-500.0,0.00014191,2]
[353524415,1739897449331,-1389.19,0.00014191,2]
[353524417,1739897449344,-151.0,0.00014191,2]
[353524418,1739897449355,-3186.79,0.00014191,2]
[353524421,1739897449367,-182.38000486,0.00014191,2]
[353524423,1739897449377,-692.41,0.00014191,2]
[353524425,1739897449387,-500.0,0.00014191,2]
[353524427,1739897449397,-564.78,0.00014191,2]
[353524428,1739897449407,-619.53,0.00014191,2]
[353524431,1739897449418,-1303.57,0.00014191,2]
[353524432,1739897449428,-991.86,0.00014191,2]
[353524434,1739897449439,-1423.23,0.00014191,2]
[353524436,1739897449449,-6758.46,0.00014191,2]
[353524439,1739897449460,-14917.53,0.00014191,2]
[353524441,1739897449471,-1025.9,0.00014191,2]
[353524443,1739897449482,-500.0,0.00014191,2]
[353524445,1739897449492,-500.0,0.00014191,2]
[353524447,1739897449502,-500.0,0.00014191,2]
[353524449,1739897449512,-500.0,0.00014191,2]
[353524451,1739897449522,-500.0,0.00014191,2]
[353524453,1739897449533,-893.42,0.00014191,2]
[353524454,1739897449543,-1265.43,0.00014191,2]
[353524457,1739897449553,-2630.2,0.00014191,2]
[353524459,1739897449564,-500.0,0.00014191,2]
[353524460,1739897449574,-726.99,0.00014191,2]
[353524462,1739897449584,-500.0,0.00014191,2]
[353524464,1739897449594,-721.74,0.00014191,2]
[353524466,1739897449604,-638.2,0.00014191,2]
[353524468,1739897449614,-4580.55825503,0.00014212,2]
[353524471,1739897449625,-154.7234452,0.00014233,2]
[353524473,1739897449635,-374.83052,0.00014233,2]
[353524475,1739897449645,-154.7234452,0.00014233,2]
[353524477,1739897449656,-154.7234452,0.00014233,2]
[353524479,1739897449666,-1174.94,0.00014273,2]
[353524481,1739897449675,-500.0,0.00014273,2]
[353524483,1739897449685,-500.0,0.00014273,2]
[353524485,1739897449695,-500.0,0.00014273,2]
[353524486,1739897449705,-500.0,0.00014273,2]
[353524489,1739897449715,-500.0,0.00014273,2]
[353524491,1739897449726,-500.0,0.00014273,2]
[353524493,1739897449737,-241.44315819,0.00014273,2]
[353524495,1739897449748,-500.0,0.00014273,2]
[353524497,1739897449758,-553.42,0.00014273,2]
[353524499,1739897449768,-500.0,0.00014273,2]
[353524501,1739897449778,-500.0,0.00014273,2]
[353524503,1739897449791,-841.33,0.00014273,2]
[353524505,1739897449801,-500.0,0.00014273,2]
[353524513,1739897449866,-500.0,0.00014273,2]
[353524515,1739897449883,-500.0,0.00014273,2]
[353524517,1739897449893,-500.0,0.00014273,2]
[353524519,1739897449902,-500.0,0.00014273,2]
[353524521,1739897449912,-538.55343507,0.00014273,2]
[353524523,1739897449922,-500.0,0.00014273,2]
[353524525,1739897449931,-500.0,0.00014273,2]
[353524527,1739897449941,-500.0,0.00014273,2]
[353524529,1739897449950,-500.0,0.00014273,2]
[353524531,1739897449960,-1433.55,0.00014273,2]
[353524533,1739897449970,-749.6,0.00014273,2]
[353524535,1739897449980,-500.0,0.00014273,2]
[353524537,1739897449989,-500.0,0.00014273,2]
[353524539,1739897450000,-4630.33,0.00014273,2]
[353524541,1739897450009,-500.0,0.00014273,2]
[353524543,1739897450019,-1836.19,0.00014273,2]
[353524545,1739897450030,-855.17,0.00014273,2]
[353524547,1739897450040,-583.31,0.00014273,2]
[353524549,1739897450050,-500.0,0.00014273,2]
[353524551,1739897450060,-1389.19,0.00014273,2]
[353524553,1739897450070,-3186.79,0.00014273,2]
[353524555,1739897450080,-692.41,0.00014273,2]
[353524557,1739897450090,-500.0,0.00014273,2]
[353524560,1739897450100,-564.78,0.00014273,2]
[353524561,1739897450109,-1303.57,0.00014273,2]
[353524563,1739897450119,-991.86,0.00014273,2]
[353524565,1739897450131,-1423.23,0.00014273,2]
[353524568,1739897450141,-6758.46,0.00014273,2]
[353524569,1739897450151,-14917.53,0.00014273,2]
[353524572,1739897450161,-1025.9,0.00014273,2]
[353524574,1739897450171,-500.0,0.00014273,2]
[353524576,1739897450181,-500.0,0.00014273,2]
[353524578,1739897450191,-500.0,0.00014273,2]
[353524580,1739897450202,-500.0,0.00014273,2]
[353524582,1739897450212,-500.0,0.00014273,2]
[353524584,1739897450223,-893.42,0.00014273,2]
[353524586,1739897450233,-1265.43,0.00014273,2]
[353524587,1739897450243,-2630.2,0.00014273,2]
[353524588,1739897450253,-500.0,0.00014273,2]
[353524589,1739897450264,-726.99,0.00014273,2]
[353524590,1739897450275,-500.0,0.00014273,2]
[353524591,1739897450285,-721.74,0.00014273,2]
[353524592,1739897450295,-638.2,0.00014273,2]
[353524593,1739897450305,-622.0,0.000143,2]
[353524594,1739897450315,-1002.90059045,0.00014328,2]
[353524595,1739897450327,-1174.94,0.00014356,2]
[353524596,1739897450338,-500.0,0.00014356,2]
[353524597,1739897450347,-217.23,0.00014356,2]
[353524598,1739897450357,-500.0,0.00014356,2]
[353524599,1739897450367,-500.0,0.00014356,2]
[353524601,1739897450378,-175.23,0.00014356,2]
[353524603,1739897450387,-500.0,0.00014356,2]
[353524605,1739897450396,-500.0,0.00014356,2]
[353524607,1739897450406,-553.42,0.00014356,2]
[353524609,1739897450415,-500.0,0.00014356,2]
[353524611,1739897450425,-202.21,0.00014356,2]
[353524613,1739897450435,-841.33,0.00014356,2]
[353524615,1739897450443,-500.0,0.00014356,2]
[353524617,1739897450453,-222.18,0.00014356,2]
[353524619,1739897450462,-559.98673173,0.00014356,2]
[353524621,1739897450471,-500.0,0.00014356,2]
[353524623,1739897450480,-500.0,0.00014356,2]
[353524625,1739897450489,-500.0,0.00014356,2]
[353524627,1739897450498,-500.0,0.00014356,2]
[353524629,1739897450508,-500.0,0.00014356,2]
[353524631,1739897450517,-500.0,0.00014356,2]
[353524633,1739897450527,-1433.55,0.00014356,2]
[353524636,1739897450537,-749.6,0.00014356,2]
[353524638,1739897450546,-500.0,0.00014356,2]
[353524640,1739897450555,-500.0,0.00014356,2]
[353524642,1739897450565,-4630.33,0.00014356,2]
[353524644,1739897450574,-500.0,0.00014356,2]
[353524646,1739897450584,-1836.19,0.00014356,2]
[353524648,1739897450593,-855.17,0.00014356,2]
[353524650,1739897450602,-583.31,0.00014356,2]
[353524652,1739897450611,-500.0,0.00014356,2]
[353524654,1739897450621,-1389.19,0.00014356,2]
[353524656,1739897450630,-151.0,0.00014356,2]
[353524658,1739897450640,-3186.79,0.00014356,2]
[353524660,1739897450651,-692.41,0.00014356,2]
[353524662,1739897450660,-230.08,0.00014356,2]
[353524664,1739897450670,-564.78,0.00014356,2]
[353524666,1739897450679,-1303.57,0.00014356,2]
[353524668,1739897450689,-991.86,0.00014356,2]
[353524670,1739897450698,-1423.23,0.00014356,2]
[353524672,1739897450708,-6758.46,0.00014356,2]
[353524674,1739897450717,-14917.53,0.00014356,2]
[353524676,1739897450726,-1025.9,0.00014356,2]
[353524678,1739897450736,-440.77600996,0.00014356,2]
[353524680,1739897450745,-500.0,0.00014356,2]
[353524682,1739897450755,-500.0,0.00014356,2]
[353524684,1739897450765,-541.83549675,0.00014356,2]
[353524686,1739897450775,-500.0,0.00014356,2]
[353524688,1739897450784,-893.42,0.00014356,2]
[353524690,1739897450794,-1265.43,0.00014356,2]
[353524692,1739897450803,-2630.2,0.00014356,2]
[353524694,1739897450812,-500.0,0.00014356,2]
[353524696,1739897450821,-726.99,0.00014356,2]
[353524698,1739897450831,-500.0,0.00014356,2]
[353524700,1739897450840,-721.74,0.00014356,2]
[353524702,1739897450850,-638.2,0.00014356,2]
[353524704,1739897450859,-1000.0,0.00014401,2]
[353524706,1739897450869,-1000.16756516,0.00014421,2]
[353524708,1739897450878,-1000.0,0.00014421,2]
[353524710,1739897450888,-1000.0,0.00014421,2]
[353524712,1739897450904,-1174.94,0.00014438,2]
[353524715,1739897450914,-500.0,0.00014438,2]
[353524716,1739897450923,-500.0,0.00014438,2]
[353524718,1739897450933,-500.0,0.00014438,2]
[353524720,1739897450943,-500.0,0.00014438,2]
[353524722,1739897450952,-500.0,0.00014438,2]
[353524724,1739897450962,-553.42,0.00014438,2]
[353524726,1739897450971,-205.08,0.00014438,2]
[353524728,1739897450981,-841.33,0.00014438,2]
[353524730,1739897450990,-500.0,0.00014438,2]
[353524732,1739897450999,-500.0,0.00014438,2]
[353524734,1739897451009,-500.0,0.00014438,2]
[353524736,1739897451018,-500.0,0.00014438,2]
[353524738,1739897451028,-500.0,0.00014438,2]
[353524741,1739897451038,-500.0,0.00014438,2]
[353524743,1739897451047,-1433.55,0.00014438,2]
[353524745,1739897451056,-749.6,0.00014438,2]
[353524747,1739897451066,-500.0,0.00014438,2]
[353524755,1739897451136,-500.0,0.00014438,2]
[353524757,1739897451145,-4630.33,0.00014438,2]
[353524759,1739897451155,-500.0,0.00014438,2]
[353524761,1739897451165,-1836.19,0.00014438,2]
[353524763,1739897451175,-855.17,0.00014438,2]
[353524765,1739897451185,-583.31,0.00014438,2]
[353524767,1739897451197,-500.0,0.00014438,2]
[353524769,1739897451209,-1389.19,0.00014438,2]
[353524771,1739897451220,-3186.79,0.00014438,2]
[353524773,1739897451230,-692.41,0.00014438,2]
[353524775,1739897451240,-564.78,0.00014438,2]
[353524777,1739897451251,-1303.57,0.00014438,2]
[353524780,1739897451261,-991.86,0.00014438,2]
[353524782,1739897451270,-1423.23,0.00014438,2]
[353524784,1739897451281,-6758.46,0.00014438,2]
[353524786,1739897451290,-14917.53,0.00014438,2]
[353524788,1739897451299,-1025.9,0.00014438,2]
[353524790,1739897451309,-500.0,0.00014438,2]
[353524792,1739897451319,-500.0,0.00014438,2]
[353524794,1739897451328,-500.0,0.00014438,2]
[353524796,1739897451340,-893.42,0.00014438,2]
[353524798,1739897451350,-1265.43,0.00014438,2]
[353524800,1739897451359,-2630.2,0.00014438,2]
[353524802,1739897451380,-500.0,0.00014438,2]
[353524803,1739897451390,-726.99,0.00014438,2]
[353524805,1739897451399,-500.0,0.00014438,2]
[353524807,1739897451409,-721.74,0.00014438,2]
[353524809,1739897451419,-638.2,0.00014438,2]
[353524811,1739897451429,-800.0,0.00014438,2]
[353524813,1739897451438,-1000.0,0.00014448,2]
[353524815,1739897451448,-1000.0,0.00014502,2]
[353524817,1739897451458,-1000.0,0.00014514,2]
[353524819,1739897451468,-1174.94,0.0001452,2]
[353524821,1739897451478,-500.0,0.0001452,2]
[353524824,1739897451488,-331.17,0.0001452,2]
[353524826,1739897451498,-500.0,0.0001452,2]
[353524828,1739897451508,-500.0,0.0001452,2]
[353524830,1739897451517,-500.0,0.0001452,2]
[353524832,1739897451527,-553.42,0.0001452,2]
[353524834,1739897451552,-841.33,0.0001452,2]
[353524836,1739897451562,-500.0,0.0001452,2]
[353524838,1739897451572,-500.0,0.0001452,2]
[353524840,1739897451582,-500.0,0.0001452,2]
[353524842,1739897451594,-500.0,0.0001452,2]
[353524844,1739897451603,-500.0,0.0001452,2]
[353524846,1739897451612,-500.0,0.0001452,2]
[353524848,1739897451621,-1433.55,0.0001452,2]
[353524850,1739897451631,-749.6,0.0001452,2]
[353524852,1739897451641,-1000.0,0.0001452,2]
[353524854,1739897451650,-500.0,0.0001452,2]
[353524856,1739897451660,-500.0,0.0001452,2]
[353524858,1739897451670,-4630.33,0.0001452,2]
[353524859,1739897451679,-500.0,0.0001452,2]
[353524862,1739897451689,-1836.19,0.0001452,2]
[353524863,1739897451698,-855.17,0.0001452,2]
[353524865,1739897451708,-583.31,0.0001452,2]
[353524868,1739897451718,-500.0,0.0001452,2]
[353524870,1739897451727,-1389.19,0.0001452,2]
[353524872,1739897451738,-3186.79,0.0001452,2]
[353524874,1739897451748,-692.41,0.0001452,2]
[353524876,1739897451757,-564.78,0.0001452,2]
[353524878,1739897451766,-1303.57,0.0001452,2]
[353524880,1739897451776,-991.86,0.0001452,2]
[353524882,1739897451786,-1423.23,0.0001452,2]
[353524884,1739897451796,-6758.46,0.0001452,2]
[353524886,1739897451805,-14917.53,0.0001452,2]
[353524888,1739897451816,-1025.9,0.0001452,2]
[353524890,1739897451826,-458.71,0.0001452,2]
[353524892,1739897451835,-500.0,0.0001452,2]
[353524894,1739897451844,-500.0,0.0001452,2]
[353524896,1739897451854,-893.42,0.0001452,2]
[353524898,1739897451863,-1265.43,0.0001452,2]
[353524900,1739897451872,-2630.2,0.0001452,2]
[353524902,1739897451881,-500.0,0.0001452,2]
[353524904,1739897451890,-726.99,0.0001452,2]
[353524906,1739897451899,-500.0,0.0001452,2]
[353524908,1739897451908,-721.74,0.0001452,2]
[353524910,1739897451917,-638.2,0.0001452,2]
[353524912,1739897451926,-1000.0,0.00014574,2]
[353524914,1739897451935,-1174.94,0.00014602,2]
[353524915,1739897451943,-588.54,0.00014602,2]
[353524918,1739897451953,-500.06822627,0.00014602,2]
[353524920,1739897451963,-500.0,0.00014602,2]
[353524922,1739897451972,-500.0,0.00014602,2]
[353524924,1739897451982,-553.42,0.00014602,2]
[353524926,1739897451993,-841.33,0.00014602,2]
[353524928,1739897452002,-500.0,0.00014602,2]
[353524930,1739897452012,-500.0,0.00014602,2]
[353524932,1739897452021,-500.0,0.00014602,2]
[353524934,1739897452037,-500.0,0.00014602,2]
[353524935,1739897452056,-168.23,0.00014602,2]
[353524937,1739897452066,-151.608241,0.00014602,2]
[353524939,1739897452075,-1433.55,0.00014602,2]
[353524941,1739897452084,-749.6,0.00014602,2]
[353524943,1739897452094,-500.0,0.00014602,2]
[353524945,1739897452103,-500.0,0.00014602,2]
[353524947,1739897452112,-4630.33,0.00014602,2]
[353524950,1739897452123,-500.0,0.00014602,2]
[353524952,1739897452132,-1836.19,0.00014602,2]
[353524954,1739897452142,-855.17,0.00014602,2]
[353524956,1739897452150,-583.31,0.00014602,2]
[353524958,1739897452160,-500.0,0.00014602,2]
[353524960,1739897452169,-1389.19,0.00014602,2]
[353524962,1739897452178,-151.0,0.00014602,2]
[353524964,1739897452187,-3186.79,0.00014602,2]
[353524965,1739897452196,-692.41,0.00014602,2]
[353524967,1739897452205,-564.78,0.00014602,2]
[353524969,1739897452214,-1303.57,0.00014602,2]
[353524971,1739897452223,-991.86,0.00014602,2]
[353524973,1739897452232,-1423.23,0.00014602,2]
[353524975,1739897452242,-6758.46,0.00014602,2]
[353524977,1739897452251,-14917.53,0.00014602,2]
[353524979,1739897452260,-1025.9,0.00014602,2]
[353524987,1739897452322,-500.0,0.00014602,2]
[353524990,1739897452338,-500.0,0.00014602,2]
[353524992,1739897452347,-893.42,0.00014602,2]
[353524994,1739897452357,-1265.43,0.00014602,2]
[353524996,1739897452367,-2630.2,0.00014602,2]
[353524998,1739897452376,-500.0,0.00014602,2]
[353524999,1739897452386,-726.99,0.00014602,2]
[353525001,1739897452395,-500.0,0.00014602,2]
[353525003,1739897452404,-721.74,0.00014602,2]
[353525005,1739897452414,-638.2,0.00014602,2]
[353525007,1739897452423,-1000.0,0.00014639,2]
[353525009,1739897452433,-1174.94,0.00014684,2]
[353525011,1739897452442,-500.0,0.00014684,2]
[353525013,1739897452452,-500.0,0.00014684,2]
[353525015,1739897452461,-553.42,0.00014684,2]
[353525017,1739897452471,-841.33,0.00014684,2]
[353525020,1739897452481,-500.0,0.00014684,2]
[353525022,1739897452491,-500.0,0.00014684,2]
[353525024,1739897452500,-532.72,0.00014684,2]
[353525026,1739897452510,-500.0,0.00014684,2]
[353525028,1739897452519,-1433.55,0.00014684,2]
[353525030,1739897452529,-749.6,0.00014684,2]
[353525032,1739897452555,-500.0,0.00014684,2]
[353525034,1739897452565,-500.0,0.00014684,2]
[353525036,1739897452575,-4630.33,0.00014684,2]
[353525038,1739897452584,-500.0,0.00014684,2]
[353525040,1739897452594,-1836.19,0.00014684,2]
[353525042,1739897452603,-855.17,0.00014684,2]
[353525044,1739897452612,-583.31,0.00014684,2]
[353525046,1739897452621,-500.0,0.00014684,2]
[353525048,1739897452630,-1389.19,0.00014684,2]
[353525049,1739897452640,-3186.79,0.00014684,2]
[353525051,1739897452649,-692.41,0.00014684,2]
[353525053,1739897452659,-564.78,0.00014684,2]
[353525055,1739897452668,-1303.57,0.00014684,2]
[353525057,1739897452678,-991.86,0.00014684,2]
[353525060,1739897452689,-1423.23,0.00014684,2]
[353525062,1739897452699,-6758.46,0.00014684,2]
[353525064,1739897452708,-14917.53,0.00014684,2]
[353525065,1739897452718,-1025.9,0.00014684,2]
[353525067,1739897452729,-500.0,0.00014684,2]
[353525070,1739897452739,-500.0,0.00014684,2]
[353525072,1739897452748,-893.42,0.00014684,2]
[353525074,1739897452758,-1265.43,0.00014684,2]
[353525076,1739897452768,-2630.2,0.00014684,2]
[353525078,1739897452777,-500.0,0.00014684,2]
[353525080,1739897452787,-726.99,0.00014684,2]
[353525082,1739897452796,-500.0,0.00014684,2]
[353525083,1739897452805,-721.74,0.00014684,2]
[353525085,1739897452815,-638.2,0.00014684,2]
[353525087,1739897452824,-426.04490927,0.00014734,2]
[353525089,1739897452833,-1174.94,0.00014767,2]
[353525091,1739897452843,-500.0,0.00014767,2]
[353525093,1739897452853,-500.0,0.00014767,2]
[353525095,1739897452862,-553.42,0.00014767,2]
[353525097,1739897452872,-841.33,0.00014767,2]
[353525100,1739897452883,-500.0,0.00014767,2]
[353525102,1739897452892,-524.63629988,0.00014767,2]
[353525104,1739897452902,-500.0,0.00014767,2]
[353525106,1739897452911,-1433.55,0.00014767,2]
[353525107,1739897452921,-749.6,0.00014767,2]
[353525109,1739897452930,-500.0,0.00014767,2]
[353525112,1739897452940,-500.0,0.00014767,2]
[353525114,1739897452949,-4630.33,0.00014767,2]
[353525116,1739897452959,-500.0,0.00014767,2]
[353525118,1739897452969,-1836.19,0.00014767,2]
[353525120,1739897452978,-855.17,0.00014767,2]
[353525122,1739897452987,-583.31,0.00014767,2]
[353525123,1739897452997,-500.0,0.00014767,2]
[353525124,1739897453006,-1389.19,0.00014767,2]
[353525125,1739897453016,-3186.79,0.00014767,2]
[353525126,1739897453025,-692.41,0.00014767,2]
[353525127,1739897453033,-564.78,0.00014767,2]
[353525128,1739897453058,-1303.57,0.00014767,2]
[353525129,1739897453068,-991.86,0.00014767,2]
[353525130,1739897453077,-1423.23,0.00014767,2]
[353525131,1739897453086,-6758.46,0.00014767,2]
[353525132,1739897453095,-14917.53,0.00014767,2]
[353525133,1739897453105,-1025.9,0.00014767,2]
[353525134,1739897453114,-500.0,0.00014767,2]
[353525136,1739897453123,-500.0,0.00014767,2]
[353525138,1739897453132,-893.42,0.00014767,2]
[353525140,1739897453141,-1265.43,0.00014767,2]
[353525142,1739897453150,-2630.2,0.00014767,2]
[353525144,1739897453160,-500.0,0.00014767,2]
[353525146,1739897453169,-726.99,0.00014767,2]
[353525148,1739897453179,-500.0,0.00014767,2]
[353525150,1739897453189,-721.74,0.00014767,2]
[353525152,1739897453198,-638.2,0.00014767,2]
[353525154,1739897453209,-150.27,0.00014771,2]
[353525156,1739897453219,-500.0,0.00014771,2]
[353525158,1739897453228,-150.27,0.00014771,2]
[353525160,1739897453238,-150.27,0.00014771,2]
[353525162,1739897453248,-300.16136656,0.00014771,2]
[353525164,1739897453257,-150.27,0.00014771,2]
[353525166,1739897453266,-500.0,0.00014771,2]
[353525168,1739897453276,-500.0,0.00014771,2]
[353525170,1739897453285,-150.27,0.00014771,2]
[353525172,1739897453295,-217.72891801,0.00014771,2]
[353525174,1739897453304,-500.0,0.00014771,2]
[353525176,1739897453314,-500.0,0.00014771,2]
[353525178,1739897453324,-150.27,0.00014771,2]
[353525180,1739897453334,-500.0,0.00014771,2]
[353525182,1739897453343,-500.0,0.00014771,2]
[353525190,1739897453353,-500.0,0.00014773,2]
[353525192,1739897453417,-150.491,0.00014782,2]